[Event "FIDE WSCC 50 2022"]
[Site "Assisi"]
[Date "2022.11.25"]
[Round "10.6"]
[White "Paschall, William"]
[Black "Lima, Darcy"]
[Result "*"]
[ECO "A37"]
[WhiteElo "2343"]
[BlackElo "2415"]
[Annotator "TA"]
[PlyCount "60"]
[EventDate "2022.11.14"]
[EventType "swiss"]
[EventCountry "ITA"]
[SourceTitle "playchess.com"]
[Source "ChessBase"]
[SourceQuality "1"]
[TimeControl "40/5400+30:1800+30"]

{[%evp 12,60,50,35,64,69,57,41,55,44,53,62,62,22,17,5,32,32,34,11,48,39,59,34,37,24,57,0,23,0,0,-31,-29,-37,-37,-37,-37,-37,-37,-38,0,-38,-12,-25,0,-49,0,0,0,-56,-41]} 1. Nf3 {[%emt 1:31:00]} c5 {[%emt 0:00:37]} 2. c4 {[%emt 0:00:38]} Nc6 {[%emt 0:00:26]} 3. g3 {[%emt 0:02:45]} g6 {[%emt 0:00:07]} 4. Bg2 {[%emt 0:00:58]} Bg7 {[%emt 0:00:10]} 5. Nc3 {[%emt 0:00:55]} d6 {[%emt 0:00:54]} 6. O-O {[%emt 0:02:54]} Qd7 {[%emt 0:00:15]} 7. e3 {[%emt 0:01:53] 7.d3 is more fashionable.} Bxc3 {[%emt 0:00:18] A37: Symmetrical English vs ...g6: 4 Bg2 Bg7 5 Nf3.} 8. bxc3 {[%emt 0:00:06]} b6 {[%emt 0:00:11]} 9. e4 {[%emt 0:05:26][%cal Oe4e5]} Bb7 {[%emt 0:02:52] White is slightly better.} 10. Qe2 {[%emt 0:09:30] [#]} e5 $146 {[%emt 0:03:21]} ({Predecessor:} 10... O-O-O 11. d4 e5 12. Rd1 Qe7 13. d5 Na5 14. Nd2 Ba6 15. Nb3 Bxc4 16. Qc2 Nb7 {1-0 (28) Rohan,A (2387)-Ezra,P (2233) Berkeley 2018}) 11. d3 {[%emt 0:02:36]} h6 {[%emt 0:04:31]} 12. Ne1 {[%emt 0:03:19][%cal Bf3e1,Be1c2,Bc2e3,Be3d5][%mdl 32]} O-O-O {[%emt 0:02:51]} 13. Nc2 {[%emt 0:03:11]} Nge7 {[%emt 0:02:32]} 14. Ne3 {[%emt 0:02:59]} Kb8 {[%emt 0:13:52]} 15. Nd5 {[%emt 0:06:18]} f5 {[%emt 1:05:03]} 16. exf5 {[%emt 0:02:59]} Nxf5 {[%emt 0:01:02]} 17. Be4 {[%emt 0:52:09]} g5 {[%emt 0:03:04]} 18. Bd2 {[%emt 0:05:54]} Rdf8 {[%emt 0:04:44]} 19. Qh5 {[%emt 0:05:11]} (19. Rfb1 $14) 19... Nfe7 {[%emt 0:07:36]} 20. f3 {[%emt 0:09:12]} (20. f4 {keeps more tension.} exf4 21. gxf4 gxf4 22. Bxf4 Qe6 23. Rae1) 20... Na5 {[%emt 0:08:38]} (20... Bc8 {looks sharper.} 21. f4 gxf4 22. gxf4 Qh3) 21. Nxe7 {[%emt 0:26:51]} Qxe7 {[%emt 0:00:31]} 22. Bxb7 {[%emt 0:19:42]} Qxb7 {[%emt 0:10:05]} 23. Qg6 {[%emt 0:01:51]} Qd7 {[%emt 0:03:02]} 24. Qe4 {[%emt 0:01:21]} Rf6 {[%emt 0:16:28]} 25. Rf2 {[%emt 0:01:08]} Rhf8 {[%emt 0:01:30]} 26. Raf1 {[%emt 0:01:20]} Kc7 {[%emt 0:02:39]} 27. Kg2 {[%emt 0:00:22]} Rg8 {[%emt 0:13:25]} 28. Qd5 {[%emt 0:01:12]} (28. g4 $11) 28... Re8 {[%emt 0:11:27]} (28... Qg7 $15 {was preferrable.}) 29. Qe4 $11 {[%emt 0:00:43]} Qf7 {[%emt 0:00:09]} 30. Bc1 {[%emt 0:01:22]} (30. Rh1 $11) 30... Nc6 {[%emt 0:00:34] Weighted Error Value: White=0.19 (very precise) /Black=0.15 (very precise)} *

[Event "FIDE WSCC 50 2022"]
[Site "Assisi"]
[Date "2022.11.25"]
[Round "10.7"]
[White "Danielsen, Henrik"]
[Black "Young, Angelo"]
[Result "1-0"]
[ECO "A45"]
[WhiteElo "2514"]
[BlackElo "2309"]
[Annotator "TA"]
[PlyCount "58"]
[EventDate "2022.11.14"]
[EventType "swiss"]
[EventCountry "ITA"]
[SourceTitle "playchess.com"]
[Source "ChessBase"]
[SourceQuality "1"]
[TimeControl "40/5400+30:1800+30"]

{[%evp 9,58,0,8,0,16,-3,-9,0,-9,-8,15,6,24,15,26,21,26,8,26,0,22,0,35,36,38,29,26,23,13,-17,-17,-17,-31,-26,-24,-51,-14,-31,11,0,25,12,185,191,202,206,235,123,138,0,0]} 1. d4 {[%emt 0:00:04]} Nf6 {[%emt 0:00:11]} 2. Bf4 {[%emt 0:00:13]} Nh5 {[%emt 0:00:37]} 3. Bd2 {[%emt 0:06:12]} g6 {[%emt 0:00:57]} 4. e4 {[%emt 0:00:53]} d6 {[%emt 0:09:36] [#]} 5. g4 $146 {[%emt 0:02:06]} ({Predecessor:} 5. c3 Bg7 6. Bc4 O-O 7. Nf3 e5 8. Bg5 Bf6 9. h4 Bg4 10. Nbd2 exd4 11. cxd4 {1-0 (64) Lewtak,D (2411)-Asis Gargatagli,H (2470) Chess.com INT 2020}) 5... Nf6 {[%emt 0:01:53][%csl LRe4,LRg4]} 6. f3 {[%emt 0:01:46] A45: Trompowsky Attack.} Bg7 {[%emt 0:07:01]} 7. h4 {[%emt 0:02:39]} h5 {[%emt 0:00:52][%cal Rh5g4]} 8. g5 {[%emt 0:00:36]} Nfd7 {[%emt 0:00:47]} 9. c3 {[%emt 0:00:47]} a6 {[%emt 0:08:40]} 10. Be3 {[%emt 0:02:02]} b5 {[%emt 0:04:46]} 11. a4 {[%emt 0:00:47]} bxa4 {[%emt 0:01:14]} 12. Qxa4 {[%emt 0:02:51]} O-O {[%emt 0:00:50]} 13. Nd2 {[%emt 0:00:21]} e6 {[%emt 0:04:17]} 14. Bd3 {[%emt 0:01:54]} Bb7 {[%emt 0:02:20]} 15. Ne2 {[%emt 0:00:15]} (15. Qb3 $5 {[%cal Rb3b7]} Nb6 16. Ne2 $14) 15... Nc6 {[%emt 0:01:35]} 16. O-O {[%emt 0:06:54]} Qc8 {[%emt 0:06:04]} 17. Qc2 {[%emt 0:10:50]} Ne7 {[%emt 0:04:38]} 18. Nb3 {[%emt 0:03:36]} d5 {[%emt 0:13:50]} 19. e5 {[%emt 0:16:19]} c5 $1 {[%emt 0:05:56]} 20. Nxc5 {[%emt 0:00:07]} Nxc5 {[%emt 0:00:09]} 21. dxc5 {[%emt 0:00:02] And now f4 would win.} Bxe5 {[%emt 0:00:32]} 22. f4 {[%emt 0:04:10][%cal Bf3f4,Bf4e5][%mdl 32]} Bg7 {[%emt 0:09:10] Hoping for ...e5.} (22... Bh8 $5 {[%cal Re6e5]} 23. Nd4 Qxc5 $15) 23. Nd4 {[%emt 0:03:03]} Nf5 {[%emt 0:05:17] Prevents b4.} (23... Qxc5 {with more complications.} 24. Nf5 Qc7 25. Nxg7 Kxg7 26. Bd4+ Kg8) 24. Bf2 {[%emt 0:02:41]} Nxd4 {[%emt 0:05:30]} 25. cxd4 {[%emt 0:00:16]} e5 $2 {[%emt 0:00:06]} (25... a5 $11 {and Black is okay.}) 26. fxe5 $18 {[%emt 0:04:11]} (26. dxe5 $6 Qg4+ 27. Kh2 (27. Kh1 Qxf4 28. Qe2 Bxe5 $17) 27... Bc8 $11) 26... Qg4+ {[%emt 0:00:23] [#]} 27. Kh2 $1 {[%emt 0:00:15]} (27. Kh1 $6 Bc6 28. Rfe1 (28. Bxa6 $2 Qh3+ 29. Kg1 Bxe5 $19) (28. Rxa6 $2 Rxa6 29. Qe2 Qh3+ 30. Kg1 Bxe5 $19) 28... Qf3+ 29. Kg1 Qg4+ 30. Kf1 Qh3+ 31. Kg1 Qg4+ 32. Kf1 Qh3+ 33. Ke2 Rfb8 $16) 27... Bc8 {[%emt 0:02:15]} 28. Rh1 {[%emt 0:02:15]} (28. Be2 $18 Qf4+ 29. Kg2) 28... Rb8 $16 {[%emt 0:01:20][%cal Of7f6] [#] aiming for ...f6!} 29. Ra3 {[%emt 0:04:42] Against f6} ({But not} 29. Bxa6 $6 Qf4+ 30. Kg1 Qg4+ 31. Kh2 (31. Kf1 Ra8 $15) 31... Qh3+ 32. Kg1 Qg4+ 33. Kh2 $11 (33. Kf1 Ra8 $11)) (29. Qe2 $1 $16) 29... Rb4 {[%emt 0:00:54][%mdl 32768] Weighted Error Value: White=0.24 (precise) /Black=0.25 (precise) . Loss on time!?} 1-0

[Event "FIDE WSCC 50 2022"]
[Site "Assisi"]
[Date "2022.11.25"]
[Round "10.8"]
[White "Antonio, Rogelio Jr"]
[Black "Rewitz, Poul"]
[Result "1-0"]
[ECO "B15"]
[WhiteElo "2397"]
[BlackElo "2172"]
[Annotator "TA"]
[PlyCount "67"]
[EventDate "2022.11.14"]
[EventType "swiss"]
[EventCountry "ITA"]
[SourceTitle "playchess.com"]
[Source "ChessBase"]
[SourceQuality "1"]
[TimeControl "40/5400+30:1800+30"]

{[%evp 14,67,17,22,22,17,49,22,25,31,59,60,45,43,66,52,113,35,41,43,214,216,188,224,247,235,231,81,309,312,332,324,428,392,435,429,828,608,600,569,553,539,922,922,1595,1544,5189,5289,29982,29983,29984,29985,29984,29984,29980,29979]} 1. e4 {[%emt 0:00:19] Duda,Jan Krzysztof} c6 {[%emt 0:00:11]} 2. d4 {[%emt 0:01:48]} d5 {[%emt 0:00:07]} 3. Nc3 {[%emt 0:00:06]} dxe4 {[%emt 0:00:19]} 4. Nxe4 {[%emt 0:00:41]} Nf6 {[%emt 0:00:07]} 5. Nxf6+ {[%emt 0:00:21]} exf6 {[%emt 0:00:08]} 6. c3 {[%emt 0:00:10]} Bd6 {[%emt 0:00:12]} 7. Bd3 {[%emt 0:00:12]} O-O {[%emt 0:00:12]} 8. Qc2 {[%emt 0:00:02] Active counter play!} Re8+ {[%emt 0:00:23] B15: Caro-Kann: 3 Nc3: 3...g6 and 3...dxe4 4 Nxe4 Nf6 5 Nxf6+ exf6.} 9. Ne2 {[%emt 0:00:11]} h5 {[%emt 0:00:37]} 10. Be3 {[%emt 0:00:08]} Nd7 {[%emt 0:00:26] The position is equal.} 11. O-O-O {[%emt 0:00:41]} b5 {[%emt 0:02:58]} 12. d5 {[%emt 0:00:39]} c5 {[%emt 0:01:40]} 13. Bxb5 {[%emt 0:00:20]} Rb8 {[%emt 0:02:12]} 14. c4 {[%emt 0:03:18] [#]} Qa5 $146 {[%emt 0:12:01]} (14... Re7 $14) ({Predecessor:} 14... a6 15. Ba4 Re7 16. Ng3 Ne5 17. Ne4 Reb7 18. b3 Rb4 19. Bd2 Rxa4 20. bxa4 Bf5 {1-0 (63) Duda,J (2757)-Carlsen,M (2863) Stavanger 2020 CBM 199 [Duda,Jan Krzysztof]}) 15. Rd3 {[%emt 0:12:19]} (15. Kb1 $16) 15... Rxb5 $14 {[%emt 0:08:16]} 16. Ra3 $36 {[%emt 0:00:14][%mdl 2048] White has some pressure.} Rxb2 $2 {[%emt 0:15:51] [#]} 17. Rxa5 $18 {[%emt 0:02:24] Chess con chili.} Rxc2+ {[%emt 0:00:10]} 18. Kxc2 {[%emt 0:00:06][%cal Bc1c2,Bc2b3,Bb3c3][%mdl 32]} Ne5 {[%emt 0:06:26]} 19. Kb3 {[%emt 0:02:56]} (19. Bxc5 Nxc4 20. Bxd6 (20. Rxa7 $2 Bxc5 21. Rc7 Bf5+ 22. Kc3 Bd6 $19) 20... Bf5+ 21. Kc3 Nxa5 $11) 19... Bf5 {[%emt 0:32:28]} 20. Rd1 {[%emt 0:08:09]} ({Weaker is} 20. Bxc5 Bxc5 21. Rxc5 Nd7 $11) (20. Ng3 $18 Bd3 21. Kc3 (21. Bxc5 Nxc4 22. Bxd6 Nxa5+ 23. Kc3 Bg6 $11)) 20... Rb8+ $2 {[%emt 0:10:57]} (20... Ng4 $16) 21. Rb5 {[%emt 0:01:14]} Rxb5+ {[%emt 0:01:49]} 22. cxb5 {[%emt 0:00:02]} Nd3 {[%emt 0:00:50]} 23. a4 {[%emt 0:02:55]} c4+ {[%emt 0:00:19]} 24. Kc3 {[%emt 0:00:08]} ({Stronger than} 24. Kxc4 Nb2+ 25. Kb3 Nxd1 $11) 24... Ba3 {[%emt 0:02:29]} (24... Be5+ $142 25. Kd2 (25. Kxc4 Nb2+ 26. Kb4 Nxd1 $11) 25... Nb2) 25. Kxc4 {[%emt 0:01:58]} Nb2+ {[%emt 0:00:11]} 26. Kb3 {[%emt 0:00:04]} Nxd1 {[%emt 0:00:11]} 27. Kxa3 {[%emt 0:00:06]} Nxe3 {[%emt 0:00:17]} 28. fxe3 {[%emt 0:00:03][%mdl 4096] Endgame KB-KN} Be4 {[%emt 0:00:35]} 29. Nc3 {[%emt 0:00:17]} Bxg2 {[%emt 0:00:58]} 30. a5 {[%emt 0:00:05][%cal Ba4a5,Ba5b6][%mdl 32] [#] b6 would kill now.} Bf1 {[%emt 0:00:45]} 31. b6 {[%emt 0:02:12] White mates.} axb6 {[%emt 0:00:08]} 32. axb6 {[%emt 0:00:02]} Ba6 {[%emt 0:00:09]} 33. d6 {[%emt 0:00:04]} Kf8 {[%emt 0:00:16]} 34. Nd5 {[%emt 0:00:01] Weighted Error Value: White=0.35/Black=0.76} 1-0

[Event "FIDE WSCC 50 2022"]
[Site "Assisi"]
[Date "2022.11.25"]
[Round "10.9"]
[White "Welling, Gerard"]
[Black "Krizsany, Laszlo"]
[Result "1-0"]
[ECO "A47"]
[WhiteElo "2255"]
[BlackElo "2371"]
[Annotator "TA"]
[PlyCount "91"]
[EventDate "2022.11.14"]
[EventType "swiss"]
[EventCountry "ITA"]
[SourceTitle "playchess.com"]
[Source "ChessBase"]
[SourceQuality "1"]
[TimeControl "40/5400+30:1800+30"]

{[%evp 12,91,11,2,27,-9,0,-32,-26,-25,-10,-18,-18,-9,-21,-7,0,0,0,-12,-5,-31,-27,-12,16,-19,0,-70,-66,-52,-68,-65,-26,-42,-35,-273,-263,-372,-293,-329,-235,-380,-341,-309,-326,-356,-352,-322,-335,-427,-379,-1352,-1265,-952,-238,-258,-247,-329,-347,-313,-355,-299,0,-76,0,0,0,0,0,0,109,0,0,0,0,0,0,0,37,36,608,555]} 1. d4 {[%emt 0:00:06]} c5 {[%emt 0:00:51]} 2. c3 {[%emt 0:00:50]} Nf6 {[%emt 0:01:14]} 3. Nf3 {[%emt 0:00:09]} e6 {[%emt 0:00:30]} 4. e3 {[%emt 0:00:41]} b6 {[%emt 0:00:47]} 5. Nbd2 {[%emt 0:00:17]} Bb7 {[%emt 0:00:42]} 6. Bd3 {[%emt 0:00:08]} Nc6 {[%emt 0:07:37]} 7. O-O {[%emt 0:00:11]} Rc8 {[%emt 0:01:27] A47: 1 d4 Nf6 2 Nf3 b6: Torre, London and Colle Systems.} 8. a3 {[%emt 0:02:09]} d5 {[%emt 0:04:04]} 9. Ne5 {[%emt 0:06:52]} Nxe5 {[%emt 0:09:47] Black is slightly better.} 10. dxe5 {[%emt 0:00:05]} Nd7 {[%emt 0:00:57]} 11. f4 $1 {[%emt 0:00:15] [#]} c4 $146 {[%emt 0:01:22]} ({Predecessor:} 11... g6 12. Qg4 Bg7 13. Nf3 Qe7 14. Ng5 Kd8 15. c4 dxc4 16. Bxc4 Kc7 17. Rd1 Rcd8 {1-0 (81) Alawieh,A (2360)-Kiss,A (2340) Bagneux 1994}) 12. Bc2 {[%emt 0:01:20]} Nc5 {[%emt 0:00:28]} 13. Nf3 {[%emt 0:02:09]} g6 {[%emt 0:06:33]} 14. Bd2 {[%emt 0:00:49]} Be7 {[%emt 0:01:32]} 15. Nd4 {[%emt 0:04:58]} Bc6 {[%emt 0:05:03]} 16. g4 {[%emt 0:19:55]} Qd7 {[%emt 0:03:28]} (16... h5 $5 {[%cal Rh5g4]}) 17. f5 {[%emt 0:13:01]} Qc7 {[%emt 0:09:04]} 18. fxe6 {[%emt 0:04:25]} (18. Be1 $5 {[%cal Re1g3]}) 18... fxe6 {[%emt 0:01:03]} (18... Nxe6 {simplifies} 19. Be1 O-O 20. Bg3 Qd7) 19. Qf3 {[%emt 0:20:36]} (19. Be1 $11) 19... Qxe5 $15 {[%emt 0:08:24]} (19... Rf8 20. Qh3 $14) 20. e4 {[%emt 0:05:11]} dxe4 {[%emt 0:06:05]} (20... Nxe4 21. Bh6 $16 (21. Bxe4 Qxe4 22. Qg3 h5 $11)) 21. Qf7+ {[%emt 0:05:29]} (21. Nxc6 Rxc6 22. Qf7+ (22. Qf2 $2 Nd3 $19) 22... Kd8 $11) 21... Kd7 {[%emt 0:00:04]} (21... Kd8 $5) 22. Nxc6 {[%emt 0:00:13] Chess con chili.} Rxc6 {[%emt 0:00:23]} 23. Rad1 $2 {[%emt 0:00:22]} (23. Bh6 $1 $15 Rd8 24. Bg7 (24. Qxh7 Rh8 $17) (24. Bf4 Qf6 $11)) 23... Nd3 $19 {[%emt 0:01:08] aiming for ...Rf8.} 24. Be3 {[%emt 0:00:40]} (24. Bh6 $142 Rd6 25. b4) 24... Rd6 {[%emt 0:03:01] ...Rf8 is the strong threat.} 25. Bxd3 {[%emt 0:01:38]} cxd3 {[%emt 0:02:39]} 26. Rd2 {[%emt 0:01:05]} (26. Qf4 {keeps fighting.} Rd5 27. Qh6) 26... h5 {[%emt 0:04:11]} 27. Qxg6 {[%emt 0:00:46]} hxg4 {[%emt 0:00:38]} 28. Rf7 {[%emt 0:01:06]} Rf8 {[%emt 0:04:05]} 29. Rxf8 {[%emt 0:01:19]} Bxf8 {[%emt 0:00:04]} 30. Qxg4 {[%emt 0:00:35]} Qf5 {[%emt 0:02:50]} 31. Qg8 {[%emt 0:01:06]} (31. Qg2 Qh7 32. Rf2) 31... e5 {[%emt 0:00:59] Threatens to win with ...Rg6+.} 32. Rg2 {Against Rg6} Rf6 $2 {[%emt 0:00:30]} (32... Qf3 {( -> ...Qd1+)} 33. Qg4+ Qxg4 34. Rxg4 Bh6 35. Bxh6 Rxh6) 33. Qd5+ Kc7 $1 {[%emt 0:00:30][%csl Gf6][%cal Rf5f1]} 34. h4 {[#]} Rg6 $1 {[%emt 0:00:30]} 35. Rxg6 Qxg6+ {[%emt 0:00:30][%mdl 4096] Endgame KQB-KQB} 36. Kh2 Bd6 $2 {[%emt 0:00:30]} (36... Be7 $19 37. Qa8 Qc6 38. Qxa7+ Qb7) 37. Qc4+ (37. Qa8 $11 {was the only way to keep the balance.}) 37... Kd7 {[%emt 0:00:30]} ({Black should try} 37... Kb8 $17 {Strongly threatening ...Qg4.} 38. Qc6 Qf6) 38. Qa4+ $11 Ke6 {[%emt 0:00:30]} 39. Qc6 Qf6 {[%emt 0:00:30]} 40. Qxe4 Qf7 {[%emt 0:00:30]} (40... b5 $11 {remains equal.} 41. c4 d2 42. Qd5+ Kd7 43. Qxb5+ (43. Bxd2 Qxh4+ 44. Kg1 Qxc4 $17) 43... Kd8 44. Qa5+ Ke7 45. Qxd2 Qxh4+ 46. Kg1 Qxc4) 41. Qg4+ (41. Qxd3 $2 {loses.} e4+ $19) ({Only move:} 41. Qc4+ $16 Ke7 42. Bg5+ (42. Qxd3 $2 {is the wrong capture.} e4+ $19) 42... Kf8 43. Qxd3) 41... Qf5 {[%emt 0:30:30]} 42. Qc4+ Ke7 {[%emt 0:00:30]} 43. Bg5+ Kf8 {[%emt 0:00:30]} 44. Qd5 Qg6 {[%emt 0:00:30]} 45. Kg2 e4 $2 {[%emt 0:00:30][%mdl 8192] [#]} (45... Kg7 $14) 46. h5 $1 {Quite a comeback for White.   Weighted Error Value: White=0.41/Black=0.48} 1-0

[Event "FIDE WSCC 50 2022"]
[Site "Assisi"]
[Date "2022.11.25"]
[Round "10.10"]
[White "Mantovani, Renzo"]
[Black "Zeller, Frank"]
[Result "1/2-1/2"]
[ECO "B22"]
[WhiteElo "2246"]
[BlackElo "2359"]
[Annotator "TA"]
[PlyCount "53"]
[EventDate "2022.11.14"]
[EventType "swiss"]
[EventCountry "ITA"]
[SourceTitle "playchess.com"]
[Source "ChessBase"]
[SourceQuality "1"]
[TimeControl "40/5400+30:1800+30"]

{[%evp 9,53,16,52,48,29,32,49,49,57,59,78,47,75,61,113,14,97,89,100,96,86,98,108,124,122,73,70,59,66,75,64,74,66,63,82,86,84,82,82,63,65,61,114,106,104,65]} 1. e4 {[%emt 0:00:08]} c5 {[%emt 0:00:45]} 2. c3 {[%emt 0:00:19]} d5 {[%emt 0:01:39]} 3. exd5 {[%emt 0:00:12]} Nf6 {[%emt 0:01:23]} 4. Bb5+ {[%emt 0:01:54]} Nbd7 {[%emt 0:00:21]} 5. d4 {[%emt 0:03:02]} Nxd5 {[%emt 0:08:09]} 6. dxc5 {[%emt 0:05:39] B22: Sicilian: 2 c3.} e6 {[%emt 0:08:43]} 7. c6 {[%emt 0:11:51]} bxc6 {[%emt 0:02:20]} 8. Bxc6 {[%emt 0:00:33] White is slightly better.} Rb8 {[%emt 0:00:26]} 9. Nf3 {[%emt 0:00:20]} Bc5 {[%emt 0:05:30]} 10. O-O {[%emt 0:00:42] [#]} O-O $146 {[%emt 0:00:50]} ({Predecessor:} 10... Ba6 11. Ne5 Bxf1 12. Nxd7 Rc8 13. Ba4 Bxf2+ 14. Kxf2 Qh4+ 15. Kxf1 Qxh2 16. Nf6+ Ke7 17. Nxd5+ exd5 18. Nd2 h5 19. Nf3 Qd6 20. Qd4 {1-0 (20) Pap,M (2467)-Ciolek,A (2214) Wunsiedel 2018}) 11. b4 $36 {[%emt 0:08:12][%mdl 2048] White has the initiative.} Be7 {[%emt 0:04:21]} (11... Bd6 $1 $14) 12. a3 {[%emt 0:11:26]} (12. Bxd5 $16 exd5 13. Bf4) 12... Bf6 {[%emt 0:05:43]} (12... Ba6 $1 $11 {remains equal.}) 13. Bxd5 $16 {[%emt 0:02:46]} exd5 {[%emt 0:00:04]} 14. Be3 {[%emt 0:00:17]} Nb6 {[%emt 0:07:55]} 15. Bd4 {[%emt 0:13:00]} Bf5 {[%emt 0:02:32]} 16. Nbd2 {[%emt 0:01:29]} Rc8 {[%emt 0:06:34]} 17. Nb3 {[%emt 0:07:00]} ({White should play} 17. Re1) 17... Na4 {[%emt 0:01:33]} 18. Bxf6 {[%emt 0:05:04]} ({Of course not} 18. Bxa7 Nxc3 19. Qd2 Ne4 $15) (18. Rc1 {feels hotter.} Nxc3 19. Qd2 Ne4 20. Qf4) 18... Qxf6 {[%emt 0:00:23]} 19. Qd4 {[%emt 0:26:06]} Rxc3 {[%emt 0:02:06] [#] And now ...Bd3 would win.} 20. Qxf6 {[%emt 0:00:00]} gxf6 {[%emt 0:00:02]} 21. Nfd4 {[%emt 0:00:00]} Bc2 {[%emt 0:16:08]} 22. Nxc2 {[%emt 0:00:00]} Rxc2 {[%emt 0:04:01]} 23. Rfd1 {[%emt 0:00:00]} Nc3 {[%emt 0:07:28]} 24. Nd4 {[%emt 0:00:00]} Nxd1 {[%emt 0:04:45]} 25. Nxc2 {[%emt 0:00:00]} Nc3 {[%emt 0:00:05]} (25... Rc8 $14) 26. Kf1 {[%emt 0:00:00]} Rc8 {[%emt 0:03:01][%cal Oc3b1]} 27. Nd4 {[%emt 0:00:00] Weighted Error Value: White=0.13 (very precise) /Black=0.16 (very precise)} 1/2-1/2

[Event "FIDE WSCC 50 2022"]
[Site "Assisi"]
[Date "2022.11.25"]
[Round "10.11"]
[White "Rocha, Sergio"]
[Black "Berend, Elvira"]
[Result "0-1"]
[ECO "A13"]
[WhiteElo "2316"]
[BlackElo "2280"]
[Annotator "TA"]
[PlyCount "90"]
[EventDate "2022.11.14"]
[EventType "swiss"]
[EventCountry "ITA"]
[SourceTitle "playchess.com"]
[Source "ChessBase"]
[SourceQuality "1"]
[TimeControl "40/5400+30:1800+30"]

{[%evp 10,90,7,-68,-60,-59,-62,-73,-74,-79,-75,-69,-31,-60,-50,-54,-45,-58,-62,-68,-43,-52,-44,-60,-45,-54,-43,-43,-52,-64,-35,-45,-48,-201,-201,-202,-202,-212,-206,-216,-202,-208,-209,-210,-182,-192,-208,-239,-252,-249,-273,-270,-254,-384,-383,-389,-395,-438,-187,-174,-206,-226,-228,-379,-379,-385,-373,-471,-456,-637,-577,-637,-589,-728,-722,-779,-620,-837,-817,-812,-811,-738,-714]} 1. Nf3 {[%emt 0:00:08]} Nf6 {[%emt 0:00:12]} 2. c4 {[%emt 0:00:18]} e6 {[%emt 0:00:21]} 3. b3 {[%emt 0:01:11]} d5 {[%emt 0:00:43]} 4. Bb2 {[%emt 0:00:10]} c5 {[%emt 0:06:08]} 5. e3 {[%emt 0:00:30]} Nc6 {[%emt 0:00:32]} 6. Be2 {[%emt 0:03:30]} ({White should play} 6. cxd5 $11 exd5 7. Be2) 6... d4 $1 {[%emt 0:00:54] The main line 6...d4 scores better than 6...Be7. A13: English Opening: 1...e6.} 7. d3 {[%emt 0:03:23]} e5 {[%emt 0:05:33]} 8. Na3 {[%emt 0:00:36]} Bd6 {[%emt 0:08:01] Black is better.} 9. Nc2 {[%emt 0:00:35][%cal Ob3b4]} O-O {[%emt 0:00:20]} 10. O-O {[%emt 0:07:28][%cal Ob3b4] [#]} h6 $146 {[%emt 0:08:13] Inhibits b4.} ({Predecessor:} 10... Re8 11. a3 Qc7 12. Rb1 b6 13. Ba1 a5 14. b4 axb4 15. axb4 dxe3 16. fxe3 cxb4 {0-1 (23) Razo,R (1336)-Hahn,C (1463) LSS email 2012}) 11. a3 {[%emt 0:01:25]} Bf5 {[%emt 0:03:48]} 12. b4 {[%emt 0:05:09]} b6 {[%emt 0:00:15]} (12... cxb4 13. axb4 dxe3 14. fxe3 $14) 13. e4 {[%emt 0:08:43]} Be6 {[%emt 0:01:49]} 14. b5 {[%emt 0:00:41]} Na5 {[%emt 0:02:02]} 15. Nce1 {[%emt 0:00:14]} Nh7 {[%emt 0:01:50]} 16. Bc1 {[%emt 0:01:46]} Nb7 {[%emt 0:09:43]} 17. g3 {[%emt 0:00:33]} a6 {[%emt 0:01:17]} 18. bxa6 $1 {[%emt 0:00:30]} Rxa6 {[%emt 0:00:05]} (18... Na5 {feels hotter.} 19. Nh4 Nf6 20. Neg2 Nc6) 19. Ng2 {[%emt 0:02:41]} Bd7 {[%emt 0:05:00]} 20. Nfh4 {[%emt 0:02:25]} b5 {[%emt 0:01:41] aiming for ...bxc4.} 21. Nf5 $2 {[%emt 0:01:20] [#] This move loses the game for White.} (21. Rb1 $15) 21... bxc4 $1 $19 {[%emt 0:00:30]} 22. dxc4 {[%emt 0:00:05]} Bxf5 {[%emt 0:03:07]} 23. exf5 {[%emt 0:00:06]} e4 {[%emt 0:00:13]} 24. Re1 {[%emt 0:00:24]} Nf6 {[%emt 0:00:20]} 25. Bf1 {[%emt 0:00:46]} Re8 {[%emt 0:05:02]} 26. Rb1 {[%emt 0:06:06]} Rb6 {[%emt 0:03:44]} 27. Bd2 {[%emt 0:01:34]} Bc7 {[%emt 0:01:12][%cal Bd6c7,Bc7e5,Be5d4][%mdl 32]} 28. Qa4 {[%emt 0:01:36]} Rxb1 {[%emt 0:00:46]} 29. Rxb1 {[%emt 0:00:05]} Nd6 {[%emt 0:00:06]} 30. Qc6 {[%emt 0:04:36]} e3 {[%emt 0:09:12]} (30... Nxf5 31. Qxc5 Be5 32. Ba5 $19) 31. fxe3 {[%emt 0:00:53]} (31. Bxe3 {was necessary.} dxe3 32. Nxe3) 31... Nde4 {[%emt 0:02:25] Pair of Knights!} (31... Nxf5 32. Rb3 $17 (32. Qxc5 $2 dxe3 33. Bxe3 Nxe3 $17)) (31... Nfe4 32. Be1 $15) 32. Rb2 {[%emt 0:04:29]} Be5 {[%emt 0:02:03] ...dxe3 is the strong threat.} 33. Ra2 {[%emt 0:00:47]} Nxd2 {[%emt 0:03:11]} (33... dxe3 $142 34. Be1 (34. Bxe3 $2 {too greedy.} Bd4 $19) 34... Bc3) 34. Rxd2 {[%emt 0:00:05]} Qa5 {[%emt 0:00:08][%csl LRa3,LRd2]} 35. Ra2 {[%emt 0:06:08]} dxe3 {[%emt 0:02:15]} 36. Qb5 $2 {[%emt 0:02:19]} (36. a4 {keeps fighting.}) 36... Qc7 {[%emt 0:03:08] White must now prevent ...Rb8.} 37. Qb1 {[%emt 0:02:05]} Bd4 {[%emt 0:01:20] Hoping for ...e2+.} 38. Be2 {[%emt 0:00:27]} Ne4 {[%emt 0:00:10][%cal Bf6e4,Be4d2,Bd2f3][%mdl 32] Strongly threatening ...Nc3. Black is clearly winning.} 39. Rc2 {[%emt 0:07:29]} Nd2 {[%emt 0:03:12]} 40. Qd1 {[%emt 0:00:42]} Rb8 {[%emt 0:00:37] And now ...Qe5 would win.} 41. Nf4 {[%emt 0:32:47]} Qe5 {[%emt 0:31:25]} 42. Rc1 Qxf5 {[%emt 0:00:30]} 43. Qc2 {[#]} Nf3+ $1 {[%emt 0:00:30][%mdl 512]} 44. Kf1 Qxc2 {[%emt 0:00:30]} ({Not} 44... Nxh2+ 45. Kg2 Qc8 46. Kxh2 $17 (46. Nd5 $2 Kh8 $19)) 45. Rxc2 Rb1+ {[%emt 0:00:30] Weighted Error Value: White=0.47/Black=0.19 (very precise)} (45... Nxh2+ $2 46. Kg2 $18) 0-1